[Event "*** Titled Tuesday 3|2 Blitz"]
[Site "Chess.com"]
[Date "2015.04.07"]
[Round "6"]
[White "MITerryble"]
[Black "lukas_111111"]
[Result "1-0"]
[WhiteElo "2490"]
[BlackElo "2326"]
[TimeControl "180+2"]
[EndTime "12:14:25 PDT"]
[Termination "MITerryble won by resignation"]

1. d4 {[%clk 0:03:01.9]} 1... Nf6 {[%clk 0:02:59.8]} 2. Nf3 {[%clk 0:03:01.6]}
2... g6 {[%clk 0:03:00.3]} 3. Bg5 {[%clk 0:03:01.9]} 3... Bg7 {[%clk 0:03:00.6]}
4. Nbd2 {[%clk 0:03:02.8]} 4... O-O {[%clk 0:03:01.1]} 5. c3 {[%clk 0:03:03.7]}
5... c5 {[%clk 0:03:00.9]} 6. dxc5 {[%clk 0:03:04.2]} 6... a5 {[%clk 0:02:57.2]}
7. a4 {[%clk 0:02:59.9]} 7... Na6 {[%clk 0:02:57.4]} 8. Nb3 {[%clk 0:03:00.9]}
8... Ne4 {[%clk 0:02:53.7]} 9. Be3 {[%clk 0:03:01.6]} 9... Qc7 {[%clk
0:02:53.1]} 10. Qd5 {[%clk 0:03:02.2]} 10... Nf6 {[%clk 0:02:53]} 11. Qe5 {[%clk
0:02:58.9]} 11... Qd8 {[%clk 0:02:35.6]} 12. Bd4 {[%clk 0:02:52.9]} 12... Nxc5
{[%clk 0:02:20.2]} 13. Qxc5 {[%clk 0:02:45.3]} 13... d6 {[%clk 0:02:20.9]} 14.
Qb6 {[%clk 0:02:42.4]} 14... Qe8 {[%clk 0:02:21.8]} 15. Bxf6 {[%clk 0:02:23.2]}
15... Bxf6 {[%clk 0:02:22.4]} 16. e4 {[%clk 0:02:22]} 16... Bd7 {[%clk
0:02:11.3]} 17. Bb5 {[%clk 0:02:21.6]} 17... Bxb5 {[%clk 0:02:10.7]} 18. Qxb5
{[%clk 0:02:22.3]} 18... Qc8 {[%clk 0:02:11.2]} 19. O-O {[%clk 0:02:22.1]} 19...
Bg7 {[%clk 0:02:12]} 20. Nxa5 {[%clk 0:02:22.5]} 20... Qg4 {[%clk 0:02:11.1]}
21. Rfe1 {[%clk 0:02:22.4]} 21... h5 {[%clk 0:02:02.4]} 22. Nxb7 {[%clk
0:02:20.4]} 22... h4 {[%clk 0:01:53.8]} 23. h3 {[%clk 0:02:21.2]} 23... Qf4
{[%clk 0:01:52.9]} 24. a5 {[%clk 0:02:21.8]} 24... f5 {[%clk 0:01:46]} 25. a6
{[%clk 0:02:16.2]} 25... fxe4 {[%clk 0:01:46.4]} 26. Qd5+ {[%clk 0:02:17]} 1-0

[Event "*** Titled Tuesday 3|2 Blitz"]
[Site "Chess.com"]
[Date "2015.04.07"]
[Round "6"]
[White "LyonBeast"]
[Black "Dlugy"]
[Result "1-0"]
[WhiteElo "2774"]
[BlackElo "2528"]
[TimeControl "180+2"]
[EndTime "12:14:36 PDT"]
[Termination "LyonBeast won by resignation"]

1. c4 {[%clk 0:03:01.9]} 1... c5 {[%clk 0:03:00.6]} 2. g3 {[%clk 0:03:01]} 2...
Nf6 {[%clk 0:03:02.2]} 3. Bg2 {[%clk 0:03:01.8]} 3... d5 {[%clk 0:03:01.9]} 4.
cxd5 {[%clk 0:03:01.8]} 4... Nxd5 {[%clk 0:03:03.1]} 5. Nf3 {[%clk 0:03:00.1]}
5... g6 {[%clk 0:03:00]} 6. d4 {[%clk 0:02:59.7]} 6... Bg7 {[%clk 0:03:01]} 7.
dxc5 {[%clk 0:02:59.2]} 7... O-O {[%clk 0:03:02]} 8. O-O {[%clk 0:02:59.5]} 8...
Na6 {[%clk 0:03:02.7]} 9. Ne1 {[%clk 0:02:51.6]} 9... Be6 {[%clk 0:03:02.6]} 10.
Nd3 {[%clk 0:02:47.2]} 10... Rc8 {[%clk 0:03:03.3]} 11. Nd2 {[%clk 0:02:44.4]}
11... Nxc5 {[%clk 0:03:03.1]} 12. Nxc5 {[%clk 0:02:46.3]} 12... Rxc5 {[%clk
0:03:04.2]} 13. Ne4 {[%clk 0:02:47.9]} 13... Rb5 {[%clk 0:02:52.5]} 14. Ng5
{[%clk 0:02:22.4]} 14... Bxb2 {[%clk 0:02:39.4]} 15. Rb1 {[%clk 0:01:46.5]}
15... Qb6 {[%clk 0:02:28.5]} 16. Rxb2 {[%clk 0:01:42.3]} 16... Rxb2 {[%clk
0:02:26.6]} 17. Bxb2 {[%clk 0:01:43.6]} 17... Qxb2 {[%clk 0:02:02.8]} 18. Bxd5
{[%clk 0:01:43.1]} 18... Bxd5 {[%clk 0:01:58.4]} 19. Qxd5 {[%clk 0:01:41.3]}
19... Qxe2 {[%clk 0:02:00.3]} 20. Qxb7 {[%clk 0:01:37.6]} 20... h6 {[%clk
0:01:58.4]} 21. Nf3 {[%clk 0:01:36.7]} 21... Qxa2 {[%clk 0:01:59.1]} 22. Qxe7
{[%clk 0:01:36.5]} 22... Qd5 {[%clk 0:01:59.8]} 23. Ne5 {[%clk 0:01:34]} 23...
a5 {[%clk 0:02:00.8]} 24. Nd7 {[%clk 0:01:34.6]} 1-0

[Event "*** Titled Tuesday 3|2 Blitz"]
[Site "Chess.com"]
[Date "2015.04.07"]
[Round "6"]
[White "chesstatour"]
[Black "MattyDPerrine"]
[Result "0-1"]
[WhiteElo "1952"]
[BlackElo "2203"]
[TimeControl "180+2"]
[EndTime "12:16:34 PDT"]
[Termination "MattyDPerrine won on time"]

1. d4 {[%clk 0:03:01.9]} 1... Nf6 {[%clk 0:02:53]} 2. Bg5 {[%clk 0:02:57.5]}
2... Ne4 {[%clk 0:02:49.6]} 3. Bf4 {[%clk 0:02:58.3]} 3... d5 {[%clk 0:02:51.5]}
4. f3 {[%clk 0:02:58.3]} 4... Nf6 {[%clk 0:02:52.5]} 5. Nc3 {[%clk 0:02:56.1]}
5... c5 {[%clk 0:02:51.6]} 6. e4 {[%clk 0:02:36.4]} 6... cxd4 {[%clk 0:02:52.3]}
7. Qxd4 {[%clk 0:02:35]} 7... Nc6 {[%clk 0:02:52.8]} 8. Bb5 {[%clk 0:02:35.1]}
8... dxe4 {[%clk 0:02:53.5]} 9. Bxc6+ {[%clk 0:02:31.9]} 9... bxc6 {[%clk
0:02:53.9]} 10. Qxd8+ {[%clk 0:02:32.2]} 10... Kxd8 {[%clk 0:02:55.8]} 11.
O-O-O+ {[%clk 0:02:32.4]} 11... Bd7 {[%clk 0:02:52]} 12. fxe4 {[%clk 0:02:27.1]}
12... e6 {[%clk 0:02:42.1]} 13. Nf3 {[%clk 0:02:25.4]} 13... Bb4 {[%clk
0:02:33.5]} 14. Ne5 {[%clk 0:02:10.9]} 14... Ke8 {[%clk 0:02:28.1]} 15. Ne2
{[%clk 0:01:36.9]} 15... c5 {[%clk 0:02:17.6]} 16. g4 {[%clk 0:00:55.5]} 16...
Bb5 {[%clk 0:02:14.1]} 17. c4 {[%clk 0:00:53.5]} 17... Ba6 {[%clk 0:02:13.8]}
18. Ng3 {[%clk 0:00:32.3]} 18... Bb7 {[%clk 0:02:11.9]} 19. a3 {[%clk
0:00:10.4]} 19... Ba5 {[%clk 0:02:06.6]} 20. g5 {[%clk 0:00:07]} 20... Nxe4
{[%clk 0:02:05.2]} 21. Rhf1 {[%clk 0:00:06.9]} 21... Rd8 {[%clk 0:01:20.9]} 22.
Rxd8+ {[%clk 0:00:04.6]} 22... Bxd8 {[%clk 0:01:22.8]} 0-1

[Event "*** Titled Tuesday 3|2 Blitz"]
[Site "Chess.com"]
[Date "2015.04.07"]
[Round "6"]
[White "HansCoolNiemann"]
[Black "AndrewMcStone"]
[Result "1-0"]
[WhiteElo "1869"]
[BlackElo "1927"]
[TimeControl "180+2"]
[EndTime "12:17:10 PDT"]
[Termination "HansCoolNiemann won by resignation"]

1. d4 {[%clk 0:03:01.9]} 1... Nf6 {[%clk 0:03:00.6]} 2. c4 {[%clk 0:03:02.6]}
2... Nc6 {[%clk 0:03:01.5]} 3. Nf3 {[%clk 0:03:02.3]} 3... e6 {[%clk 0:03:02.4]}
4. g3 {[%clk 0:02:59.6]} 4... Bb4+ {[%clk 0:03:03.3]} 5. Bd2 {[%clk 0:02:59.5]}
5... Qe7 {[%clk 0:03:04.4]} 6. a3 {[%clk 0:02:59.1]} 6... Bxd2+ {[%clk
0:03:04.8]} 7. Qxd2 {[%clk 0:03:01]} 7... a5 {[%clk 0:03:02.7]} 8. Bg2 {[%clk
0:03:01.2]} 8... d6 {[%clk 0:03:03.2]} 9. O-O {[%clk 0:03:01.1]} 9... O-O {[%clk
0:03:02.7]} 10. Nc3 {[%clk 0:03:01.7]} 10... e5 {[%clk 0:02:59]} 11. d5 {[%clk
0:02:58.8]} 11... Nb8 {[%clk 0:02:56.7]} 12. e4 {[%clk 0:02:59.6]} 12... a4
{[%clk 0:02:45.5]} 13. Qc2 {[%clk 0:02:50.5]} 13... Bd7 {[%clk 0:02:42.4]} 14.
Ne1 {[%clk 0:02:50.5]} 14... h6 {[%clk 0:01:33.2]} 15. Nd3 {[%clk 0:02:49.3]}
15... Na6 {[%clk 0:01:27.1]} 16. f4 {[%clk 0:02:45]} 16... Ng4 {[%clk
0:01:23.6]} 17. Qe2 {[%clk 0:02:39.4]} 17... exf4 {[%clk 0:01:20.2]} 18. gxf4
{[%clk 0:02:39]} 18... f5 {[%clk 0:01:09.9]} 19. e5 {[%clk 0:02:37.8]} 19...
dxe5 {[%clk 0:00:59.7]} 20. fxe5 {[%clk 0:02:39.7]} 20... Nc5 {[%clk 0:00:33.8]}
21. e6 {[%clk 0:02:36.3]} 21... Nxd3 {[%clk 0:00:34.4]} 22. Qxd3 {[%clk
0:02:36.6]} 22... Qc5+ {[%clk 0:00:35.3]} 23. Kh1 {[%clk 0:02:37.3]} 23... Be8
{[%clk 0:00:29.3]} 24. Qe2 {[%clk 0:02:23.3]} 24... Ne3 {[%clk 0:00:24.3]} 25.
Rfe1 {[%clk 0:02:22.4]} 25... Nxc4 {[%clk 0:00:22.5]} 26. Rac1 {[%clk
0:02:22.2]} 26... b5 {[%clk 0:00:20.7]} 27. d6 {[%clk 0:02:19.3]} 27... Bc6
{[%clk 0:00:15.8]} 28. d7 {[%clk 0:02:12.8]} 28... Bxg2+ {[%clk 0:00:13.4]} 29.
Qxg2 {[%clk 0:02:13.9]} 29... f4 {[%clk 0:00:11.1]} 30. e7 {[%clk 0:02:12.4]}
30... f3 {[%clk 0:00:11.3]} 31. exf8=Q+ {[%clk 0:02:11.5]} 31... Rxf8 {[%clk
0:00:13.2]} 32. Qg6 {[%clk 0:02:07.8]} 32... f2 {[%clk 0:00:11.6]} 33. Re8
{[%clk 0:02:03.4]} 33... Nd2 {[%clk 0:00:04.4]} 34. d8=Q {[%clk 0:01:58.4]}
34... f1=Q+ {[%clk 0:00:04.5]} 35. Rxf1 {[%clk 0:01:56.2]} 35... Nxf1 {[%clk
0:00:05.5]} 36. Rxf8+ {[%clk 0:01:56.3]} 1-0

[Event "*** Titled Tuesday 3|2 Blitz"]
[Site "Chess.com"]
[Date "2015.04.07"]
[Round "6"]
[White "bugsbunny444"]
[Black "GMBenjaminBok"]
[Result "1-0"]
[WhiteElo "2309"]
[BlackElo "2427"]
[TimeControl "180+2"]
[EndTime "12:18:12 PDT"]
[Termination "bugsbunny444 won on time"]

1. Nf3 {[%clk 0:03:01.9]} 1... g6 {[%clk 0:03:00.5]} 2. e4 {[%clk 0:03:02.7]}
2... d6 {[%clk 0:03:00.2]} 3. d4 {[%clk 0:03:03.8]} 3... Nf6 {[%clk 0:03:00.3]}
4. Nc3 {[%clk 0:03:04.5]} 4... Bg7 {[%clk 0:03:00.6]} 5. h3 {[%clk 0:03:05.9]}
5... c6 {[%clk 0:03:00.2]} 6. a4 {[%clk 0:03:06]} 6... O-O {[%clk 0:02:57.9]} 7.
Be3 {[%clk 0:03:07.1]} 7... Qc7 {[%clk 0:02:57.6]} 8. a5 {[%clk 0:02:59.8]} 8...
Nbd7 {[%clk 0:02:37.3]} 9. Qd2 {[%clk 0:02:43.8]} 9... Rb8 {[%clk 0:02:27.1]}
10. Bc4 {[%clk 0:02:27.5]} 10... Nxe4 {[%clk 0:02:09.1]} 11. Nxe4 {[%clk
0:02:28.3]} 11... d5 {[%clk 0:02:08.9]} 12. Bf4 {[%clk 0:01:28.5]} 12... e5
{[%clk 0:02:08.1]} 13. dxe5 {[%clk 0:01:29.2]} 13... Nxe5 {[%clk 0:01:34.3]} 14.
Nxe5 {[%clk 0:01:11.7]} 14... Bxe5 {[%clk 0:01:34.4]} 15. Nf6+ {[%clk
0:01:12.1]} 15... Kh8 {[%clk 0:01:34.7]} 16. Bg3 {[%clk 0:00:36.3]} 16... Qe7
{[%clk 0:00:53.6]} 17. Qe2 {[%clk 0:00:15.4]} 17... Qb4+ {[%clk 0:00:28]} 18.
Qd2 {[%clk 0:00:10.4]} 18... Qxb2 {[%clk 0:00:07.1]} 19. Qh6 {[%clk 0:00:07.2]}
19... Qb4+ {[%clk 0:00:04.6]} 20. Kd1 {[%clk 0:00:05.9]} 20... Bxf6 {[%clk
0:00:04.9]} 21. Bxb8 {[%clk 0:00:03.9]} 1-0

[Event "*** Titled Tuesday 3|2 Blitz"]
[Site "Chess.com"]
[Date "2015.04.07"]
[Round "6"]
[White "Yaacovn"]
[Black "zmaj23"]
[Result "0-1"]
[WhiteElo "2605"]
[BlackElo "2411"]
[TimeControl "180+2"]
[EndTime "12:18:50 PDT"]
[Termination "zmaj23 won by resignation"]

1. d4 {[%clk 0:03:01.9]} 1... c5 {[%clk 0:03:00]} 2. c3 {[%clk 0:03:02.7]} 2...
g6 {[%clk 0:02:57.8]} 3. Nf3 {[%clk 0:03:00]} 3... Bg7 {[%clk 0:02:58.6]} 4.
dxc5 {[%clk 0:02:59.9]} 4... Na6 {[%clk 0:02:56.6]} 5. Be3 {[%clk 0:03:00.8]}
5... Nf6 {[%clk 0:02:54]} 6. g3 {[%clk 0:03:00.8]} 6... Ng4 {[%clk 0:02:52.5]}
7. Bd4 {[%clk 0:02:55]} 7... e5 {[%clk 0:02:50.8]} 8. h3 {[%clk 0:02:56.4]} 8...
exd4 {[%clk 0:02:51.8]} 9. hxg4 {[%clk 0:02:57.8]} 9... dxc3 {[%clk 0:02:49.1]}
10. Nxc3 {[%clk 0:02:59.7]} 10... Nxc5 {[%clk 0:02:47.1]} 11. Bg2 {[%clk
0:02:56.9]} 11... d5 {[%clk 0:02:41.9]} 12. O-O {[%clk 0:02:51.4]} 12... Bxg4
{[%clk 0:02:39.1]} 13. Qxd5 {[%clk 0:02:40.9]} 13... Qxd5 {[%clk 0:02:30.1]} 14.
Nxd5 {[%clk 0:02:42.8]} 14... O-O {[%clk 0:02:27.6]} 15. Rac1 {[%clk 0:02:43.8]}
15... Ne6 {[%clk 0:02:28.1]} 16. b3 {[%clk 0:02:41.5]} 16... Rad8 {[%clk
0:02:25.9]} 17. Ne3 {[%clk 0:02:41.1]} 17... h5 {[%clk 0:02:20]} 18. Rfd1 {[%clk
0:02:38.2]} 18... Bh6 {[%clk 0:02:17.5]} 19. Rd3 {[%clk 0:02:23.3]} 19... Bf5
{[%clk 0:02:13.4]} 20. Rdc3 {[%clk 0:02:02]} 20... Rfe8 {[%clk 0:02:08.2]} 21.
Nh4 {[%clk 0:01:49.4]} 21... Nd4 {[%clk 0:02:05.7]} 22. Nhxf5 {[%clk 0:01:32.1]}
22... Nxf5 {[%clk 0:02:02.9]} 23. Nxf5 {[%clk 0:00:59.4]} 23... Bxc1 {[%clk
0:02:00.9]} 24. Rxc1 {[%clk 0:01:00.5]} 24... gxf5 {[%clk 0:01:59.1]} 25. e3
{[%clk 0:01:01.7]} 25... b6 {[%clk 0:01:55.3]} 26. Rc7 {[%clk 0:00:53.2]} 26...
Rd1+ {[%clk 0:01:52.5]} 27. Bf1 {[%clk 0:00:54.5]} 27... a5 {[%clk 0:01:41.6]}
28. Kg2 {[%clk 0:00:54.1]} 28... Red8 {[%clk 0:01:42.9]} 29. Bc4 {[%clk
0:00:46.5]} 29... R8d7 {[%clk 0:01:41.2]} 30. Rc8+ {[%clk 0:00:47.1]} 30... Kg7
{[%clk 0:01:41.8]} 31. Rb8 {[%clk 0:00:42.4]} 31... R1d2 {[%clk 0:01:31.1]} 32.
Rxb6 {[%clk 0:00:36.3]} 32... Rxa2 {[%clk 0:01:31.6]} 33. Rb5 {[%clk 0:00:37.4]}
33... Kf6 {[%clk 0:01:28.5]} 34. Rb6+ {[%clk 0:00:38.4]} 34... Kg5 {[%clk
0:01:24.8]} 35. b4 {[%clk 0:00:25.6]} 35... Rc2 {[%clk 0:01:22.5]} 36. Bb3
{[%clk 0:00:05.6]} 36... Rb2 {[%clk 0:01:23.7]} 37. bxa5 {[%clk 0:00:06.5]}
37... Rdd2 {[%clk 0:01:23.5]} 38. Bxf7 {[%clk 0:00:07.1]} 38... Rxf2+ {[%clk
0:01:23.4]} 39. Kg1 {[%clk 0:00:08.5]} 39... Kg4 {[%clk 0:01:13.4]} 40. Rxb2
{[%clk 0:00:07.5]} 40... Rxb2 {[%clk 0:01:15.3]} 41. a6 {[%clk 0:00:04.4]} 41...
Kxg3 {[%clk 0:01:13.3]} 42. Kf1 {[%clk 0:00:05.5]} 42... h4 {[%clk 0:01:11.9]}
43. Bd5 {[%clk 0:00:04.8]} 43... Rb1+ {[%clk 0:01:06.5]} 44. Ke2 {[%clk
0:00:06.1]} 44... Ra1 {[%clk 0:01:08.2]} 45. Bb7 {[%clk 0:00:06.4]} 45... h3
{[%clk 0:01:04.2]} 46. e4 {[%clk 0:00:07.4]} 46... fxe4 {[%clk 0:01:02.2]} 47.
Ke3 {[%clk 0:00:07.1]} 47... h2 {[%clk 0:01:01.6]} 0-1

[Event "*** Titled Tuesday 3|2 Blitz"]
[Site "Chess.com"]
[Date "2015.04.07"]
[Round "6"]
[White "tac49"]
[Black "petrpalachev"]
[Result "1-0"]
[WhiteElo "2379"]
[BlackElo "2421"]
[TimeControl "180+2"]
[EndTime "12:18:54 PDT"]
[Termination "tac49 won by resignation"]

1. e4 {[%clk 0:03:01.1]} 1... c6 {[%clk 0:03:00.8]} 2. d4 {[%clk 0:03:00.9]}
2... d5 {[%clk 0:03:02.7]} 3. Nc3 {[%clk 0:03:01.8]} 3... dxe4 {[%clk
0:03:03.5]} 4. Nxe4 {[%clk 0:03:02.5]} 4... Bf5 {[%clk 0:03:05.4]} 5. Ng3 {[%clk
0:03:03.6]} 5... Bg6 {[%clk 0:03:06.5]} 6. h4 {[%clk 0:03:04.4]} 6... h6 {[%clk
0:03:07.7]} 7. Nf3 {[%clk 0:03:05.7]} 7... e6 {[%clk 0:03:07.9]} 8. h5 {[%clk
0:03:06]} 8... Bh7 {[%clk 0:03:09.1]} 9. Bd3 {[%clk 0:03:02.9]} 9... Bxd3 {[%clk
0:03:07.8]} 10. Qxd3 {[%clk 0:03:04.8]} 10... Nf6 {[%clk 0:03:04.9]} 11. Bf4
{[%clk 0:03:01.9]} 11... Bb4+ {[%clk 0:03:04.1]} 12. c3 {[%clk 0:02:59.4]} 12...
Be7 {[%clk 0:03:05]} 13. O-O-O {[%clk 0:02:57.8]} 13... O-O {[%clk 0:03:04.9]}
14. Kb1 {[%clk 0:02:51.2]} 14... Qb6 {[%clk 0:03:01.5]} 15. Ne4 {[%clk
0:02:43.6]} 15... Nxe4 {[%clk 0:03:01.9]} 16. Qxe4 {[%clk 0:02:43.5]} 16... Nd7
{[%clk 0:03:03.5]} 17. g4 {[%clk 0:02:35.4]} 17... Qb5 {[%clk 0:02:29.6]} 18.
Ne5 {[%clk 0:02:21.5]} 18... Nxe5 {[%clk 0:02:26.3]} 19. Qxe5 {[%clk 0:01:59.2]}
19... Qxe5 {[%clk 0:02:26.5]} 20. dxe5 {[%clk 0:01:56.7]} 20... Rfd8 {[%clk
0:02:27.1]} 21. Kc2 {[%clk 0:01:56.9]} 21... Rxd1 {[%clk 0:02:18]} 22. Rxd1
{[%clk 0:01:56.7]} 22... Rd8 {[%clk 0:02:19.9]} 23. Rxd8+ {[%clk 0:01:56.9]}
23... Bxd8 {[%clk 0:02:21.8]} 24. Be3 {[%clk 0:01:58]} 24... a6 {[%clk
0:02:21.5]} 25. Kd3 {[%clk 0:01:58.7]} 25... b5 {[%clk 0:02:15.5]} 26. Bc5
{[%clk 0:01:50.1]} 26... f5 {[%clk 0:01:49.6]} 27. gxf5 {[%clk 0:01:32.3]} 27...
exf5 {[%clk 0:01:50.2]} 28. e6 {[%clk 0:01:33.8]} 28... Bf6 {[%clk 0:01:27.2]}
29. Bd6 {[%clk 0:01:29.4]} 29... a5 {[%clk 0:01:06.9]} 30. b3 {[%clk 0:01:19.1]}
30... a4 {[%clk 0:01:03.5]} 31. bxa4 {[%clk 0:01:17.9]} 31... bxa4 {[%clk
0:01:05.4]} 32. c4 {[%clk 0:01:17.2]} 32... Bb2 {[%clk 0:00:53.7]} 33. Ke3
{[%clk 0:01:13.8]} 33... Bc1+ {[%clk 0:00:13.6]} 34. Kd4 {[%clk 0:01:13.6]}
34... Bg5 {[%clk 0:00:07.2]} 35. Ke5 {[%clk 0:01:10.7]} 35... Bh4 {[%clk
0:00:03.1]} 36. Kxf5 {[%clk 0:01:06.8]} 36... Bxf2 {[%clk 0:00:03.1]} 37. Kg6
{[%clk 0:01:08.3]} 37... Bh4 {[%clk 0:00:03.4]} 38. e7 {[%clk 0:01:08.3]} 38...
Bxe7 {[%clk 0:00:04.5]} 39. Bxe7 {[%clk 0:01:09.2]} 39... Kh8 {[%clk 0:00:06.4]}
40. Bf8 {[%clk 0:01:02.7]} 40... Kg8 {[%clk 0:00:08.3]} 41. Bxg7 {[%clk
0:01:03.3]} 41... a3 {[%clk 0:00:10.2]} 42. Bxh6 {[%clk 0:01:03.4]} 42... c5
{[%clk 0:00:12.1]} 43. Be3 {[%clk 0:01:03.9]} 43... Kh8 {[%clk 0:00:12.9]} 44.
Bxc5 {[%clk 0:01:01.4]} 44... Kg8 {[%clk 0:00:14.8]} 45. h6 {[%clk 0:01:01.9]}
45... Kh8 {[%clk 0:00:15.6]} 46. Bd4+ {[%clk 0:01:02.8]} 46... Kg8 {[%clk
0:00:17]} 1-0

[Event "*** Titled Tuesday 3|2 Blitz"]
[Site "Chess.com"]
[Date "2015.04.07"]
[Round "6"]
[White "iFrancisco"]
[Black "chessloveyou"]
[Result "0-1"]
[WhiteElo "2209"]
[BlackElo "2130"]
[TimeControl "180+2"]
[EndTime "12:19:42 PDT"]
[Termination "chessloveyou won by resignation"]

1. e4 {[%clk 0:03:01.9]} 1... c6 {[%clk 0:02:52]} 2. d4 {[%clk 0:02:59.5]} 2...
d5 {[%clk 0:02:52.4]} 3. e5 {[%clk 0:03:01]} 3... Bf5 {[%clk 0:02:51.4]} 4. Nf3
{[%clk 0:03:02.4]} 4... e6 {[%clk 0:02:51.7]} 5. Be2 {[%clk 0:03:03.9]} 5... Nd7
{[%clk 0:02:50.4]} 6. O-O {[%clk 0:03:04.3]} 6... c5 {[%clk 0:02:47.5]} 7. Be3
{[%clk 0:03:04.9]} 7... Rc8 {[%clk 0:02:34.1]} 8. Nbd2 {[%clk 0:02:45.2]} 8...
Ne7 {[%clk 0:02:30]} 9. c4 {[%clk 0:02:46]} 9... Bg4 {[%clk 0:02:24]} 10. Rc1
{[%clk 0:02:35.1]} 10... Nf5 {[%clk 0:02:23.4]} 11. cxd5 {[%clk 0:02:34.7]}
11... exd5 {[%clk 0:02:15.1]} 12. Qa4 {[%clk 0:02:19.6]} 12... cxd4 {[%clk
0:01:49.1]} 13. Bg5 {[%clk 0:01:42.4]} 13... Be7 {[%clk 0:01:13.2]} 14. Bxe7
{[%clk 0:01:40.6]} 14... Nxe7 {[%clk 0:01:09.3]} 15. Qxd4 {[%clk 0:00:35.1]}
15... Bxf3 {[%clk 0:00:49.5]} 16. Nxf3 {[%clk 0:00:37]} 16... O-O {[%clk
0:00:47.6]} 17. Qxa7 {[%clk 0:00:36.2]} 17... b6 {[%clk 0:00:42.5]} 18. Qa3
{[%clk 0:00:35.1]} 18... Nc5 {[%clk 0:00:38.6]} 19. Rfd1 {[%clk 0:00:30.8]}
19... Ra8 {[%clk 0:00:38.9]} 20. Qb4 {[%clk 0:00:30.7]} 20... Rxa2 {[%clk
0:00:39]} 21. Bb5 {[%clk 0:00:27.8]} 21... Qa8 {[%clk 0:00:21.9]} 22. Qh4 {[%clk
0:00:22.3]} 22... Ng6 {[%clk 0:00:17.9]} 23. Qd4 {[%clk 0:00:22.8]} 23... Qa5
{[%clk 0:00:17.3]} 24. Bc6 {[%clk 0:00:20.2]} 24... Nb3 {[%clk 0:00:16.9]} 25.
Qxd5 {[%clk 0:00:18]} 25... Nxc1 {[%clk 0:00:16]} 26. Qc4 {[%clk 0:00:10.9]}
26... Ra1 {[%clk 0:00:12.7]} 27. e6 {[%clk 0:00:10.7]} 27... fxe6 {[%clk
0:00:13]} 28. Qxe6+ {[%clk 0:00:10.7]} 28... Kh8 {[%clk 0:00:14]} 29. h4 {[%clk
0:00:12.2]} 29... Nb3 {[%clk 0:00:10.6]} 30. Qxb3 {[%clk 0:00:12.6]} 30... Rxd1+
{[%clk 0:00:10.5]} 31. Qxd1 {[%clk 0:00:14.5]} 31... Qc5 {[%clk 0:00:08.8]} 32.
Be4 {[%clk 0:00:13.7]} 32... Nf4 {[%clk 0:00:09.4]} 33. Qd2 {[%clk 0:00:11.3]}
33... Qe7 {[%clk 0:00:08.9]} 34. Qe3 {[%clk 0:00:10.1]} 34... Ne6 {[%clk
0:00:07.7]} 35. Ng5 {[%clk 0:00:10.5]} 35... Nxg5 {[%clk 0:00:08]} 36. hxg5
{[%clk 0:00:12.4]} 36... Re8 {[%clk 0:00:09.1]} 37. f3 {[%clk 0:00:13.8]} 37...
Qc5 {[%clk 0:00:10]} 38. Kf2 {[%clk 0:00:15.2]} 38... Qxe3+ {[%clk 0:00:10.5]}
39. Kxe3 {[%clk 0:00:17.1]} 39... Re5 {[%clk 0:00:11.6]} 40. f4 {[%clk
0:00:17.4]} 40... Rb5 {[%clk 0:00:12.6]} 41. f5 {[%clk 0:00:18.7]} 41... Rxb2
{[%clk 0:00:13.5]} 42. f6 {[%clk 0:00:20.1]} 42... gxf6 {[%clk 0:00:14.6]} 43.
gxf6 {[%clk 0:00:22]} 43... Kg8 {[%clk 0:00:15.8]} 44. Bd5+ {[%clk 0:00:23.5]}
44... Kf8 {[%clk 0:00:16.9]} 45. g4 {[%clk 0:00:25.4]} 45... Rb4 {[%clk
0:00:17.3]} 46. Be4 {[%clk 0:00:26.4]} 46... h6 {[%clk 0:00:17.9]} 47. Kf4
{[%clk 0:00:23.6]} 47... Kf7 {[%clk 0:00:18.9]} 48. Ke5 {[%clk 0:00:21.6]} 48...
Rxe4+ {[%clk 0:00:19]} 49. Kxe4 {[%clk 0:00:23.5]} 49... Kxf6 {[%clk 0:00:20.5]}
0-1

[Event "*** Titled Tuesday 3|2 Blitz"]
[Site "Chess.com"]
[Date "2015.04.07"]
[Round "6"]
[White "GasconJR"]
[Black "Mazetovic"]
[Result "1-0"]
[WhiteElo "2285"]
[BlackElo "2428"]
[TimeControl "180+2"]
[EndTime "12:19:47 PDT"]
[Termination "GasconJR won on time"]

1. e4 {[%clk 0:03:01.9]} 1... c5 {[%clk 0:02:58.1]} 2. Nf3 {[%clk 0:03:02.5]}
2... Nc6 {[%clk 0:02:57.6]} 3. d4 {[%clk 0:03:03.4]} 3... cxd4 {[%clk
0:02:57.3]} 4. Nxd4 {[%clk 0:03:05]} 4... g6 {[%clk 0:02:58.7]} 5. Nc3 {[%clk
0:03:04.4]} 5... Bg7 {[%clk 0:03:00]} 6. Nb3 {[%clk 0:03:05.9]} 6... Nf6 {[%clk
0:03:00]} 7. g4 {[%clk 0:03:06.5]} 7... d6 {[%clk 0:02:53.1]} 8. g5 {[%clk
0:03:07.3]} 8... Nd7 {[%clk 0:02:52.7]} 9. h4 {[%clk 0:03:08.5]} 9... Nde5
{[%clk 0:02:44.8]} 10. h5 {[%clk 0:02:57.3]} 10... Bg4 {[%clk 0:02:39.9]} 11.
Be2 {[%clk 0:02:56.8]} 11... Bxe2 {[%clk 0:02:34.6]} 12. Qxe2 {[%clk 0:02:57.1]}
12... gxh5 {[%clk 0:02:17.9]} 13. f4 {[%clk 0:02:52.2]} 13... Ng6 {[%clk
0:02:15.5]} 14. Qxh5 {[%clk 0:02:40]} 14... Nb4 {[%clk 0:01:56.8]} 15. Qe2
{[%clk 0:02:28.3]} 15... Qc7 {[%clk 0:01:48.2]} 16. Qb5+ {[%clk 0:02:24]} 16...
Nc6 {[%clk 0:01:44.8]} 17. Be3 {[%clk 0:02:17.2]} 17... a6 {[%clk 0:01:42.7]}
18. Nd5 {[%clk 0:02:11]} 18... Qd7 {[%clk 0:01:31.7]} 19. Qe2 {[%clk 0:02:09.4]}
19... Bxb2 {[%clk 0:01:18.1]} 20. Rb1 {[%clk 0:02:09.4]} 20... Bg7 {[%clk
0:01:13.9]} 21. f5 {[%clk 0:01:54.9]} 21... Nge5 {[%clk 0:01:07.1]} 22. Nb6
{[%clk 0:01:30.5]} 22... Qd8 {[%clk 0:01:03.5]} 23. Nxa8 {[%clk 0:01:31.1]}
23... Qxa8 {[%clk 0:01:02]} 24. O-O {[%clk 0:01:31.2]} 24... b5 {[%clk
0:00:39.6]} 25. Nd2 {[%clk 0:01:08.9]} 25... h6 {[%clk 0:00:37]} 26. g6 {[%clk
0:00:32.8]} 26... Bf6 {[%clk 0:00:36.4]} 27. c4 {[%clk 0:00:30.1]} 27... fxg6
{[%clk 0:00:31.2]} 28. cxb5 {[%clk 0:00:29.4]} 28... axb5 {[%clk 0:00:31.4]} 29.
Qxb5 {[%clk 0:00:25.4]} 29... gxf5 {[%clk 0:00:31.9]} 30. Rxf5 {[%clk 0:00:26]}
30... Rg8+ {[%clk 0:00:32.7]} 31. Kh1 {[%clk 0:00:20.7]} 31... Rg3 {[%clk
0:00:31.1]} 32. Bf4 {[%clk 0:00:21.1]} 32... Rh3+ {[%clk 0:00:29.7]} 33. Kg2
{[%clk 0:00:21.9]} 33... Ra3 {[%clk 0:00:29.1]} 34. Bxe5 {[%clk 0:00:22.2]}
34... Bxe5 {[%clk 0:00:29.3]} 35. Rbf1 {[%clk 0:00:20.2]} 35... Kd7 {[%clk
0:00:28.9]} 36. Rxe5 {[%clk 0:00:19.6]} 36... dxe5 {[%clk 0:00:29.3]} 37. Qd5+
{[%clk 0:00:20.7]} 37... Kc7 {[%clk 0:00:30.1]} 38. Rc1 {[%clk 0:00:21.7]} 38...
Rxa2 {[%clk 0:00:18.6]} 39. Qxe5+ {[%clk 0:00:22.8]} 39... Kd8 {[%clk
0:00:17.2]} 40. Qd5+ {[%clk 0:00:23.4]} 40... Kc7 {[%clk 0:00:18.1]} 41. Kh1
{[%clk 0:00:19.4]} 41... Ra6 {[%clk 0:00:11.1]} 42. Nb3 {[%clk 0:00:19.9]} 42...
Qe8 {[%clk 0:00:10.6]} 43. Nd4 {[%clk 0:00:19]} 43... Qd7 {[%clk 0:00:05.3]} 44.
Qc5 {[%clk 0:00:07.7]} 44... Qd6 {[%clk 0:00:05.4]} 45. Nb5+ {[%clk 0:00:07.4]}
45... Kd7 {[%clk 0:00:06.7]} 46. Nxd6 {[%clk 0:00:08.6]} 46... e6 {[%clk
0:00:08.1]} 47. Qb5 {[%clk 0:00:09.2]} 1-0